[Event "Titled Tuesday Blitz January 25 2022"]
[White "Devaev, Alexander"]
[Black "Klimkowski, Jan"]
[WhiteFideId "4169395"]
[BlackFideId "21856222"]
[WhiteElo "2185"]
[BlackElo "2172"]
[Result "0-1"]
[Round "02"]
[TimeControl "180+1"]
[Date "2022.01.26"]
[WhiteClock "0:00:06"]
[BlackClock "0:00:08"]

1. d4 {[%clk 0:03:00]}  Nf6 {[%clk 0:03:00]} 2. c4 {[%clk 0:03:01]}  e6 {[%clk 0:03:00]} 3. Nf3 {[%clk 0:03:01]}  d5 {[%clk 0:03:01]} 4. cxd5 {[%clk 0:03:01]}  exd5 {[%clk 0:03:02]} 5. Nc3 {[%clk 0:03:01]}  c6 {[%clk 0:03:01]} 6. Bg5 {[%clk 0:03:01]}  Be7 {[%clk 0:03:01]} 7. Bxf6 {[%clk 0:03:02]}  Bxf6 {[%clk 0:03:00]} 8. e3 {[%clk 0:03:03]}  O-O {[%clk 0:03:00]} 9. Bd3 {[%clk 0:03:03]}  Re8 {[%clk 0:02:59]} 10. Qc2 {[%clk 0:03:04]}  h6 {[%clk 0:02:58]} 11. h3 {[%clk 0:03:04]}  Nd7 {[%clk 0:02:56]} 12. O-O {[%clk 0:03:05]}  g6 {[%clk 0:02:38]} 13. b4 {[%clk 0:03:02]}  Bg7 {[%clk 0:02:36]} 14. b5 {[%clk 0:03:01]}  cxb5 {[%clk 0:02:24]} 15. Bxb5 {[%clk 0:02:46]}  a6 {[%clk 0:02:20]} 16. Bd3 {[%clk 0:02:23]}  Nf6 {[%clk 0:02:05]} 17. a4 {[%clk 0:02:21]}  Bd7 {[%clk 0:02:01]} 18. Ne5 {[%clk 0:02:08]}  Rc8 {[%clk 0:02:01]} 19. Qb3 {[%clk 0:01:55]}  Rc7 {[%clk 0:01:58]} 20. Rac1 {[%clk 0:01:50]}  Be6 {[%clk 0:01:48]} 21. Ne2 {[%clk 0:01:42]}  Ne4 {[%clk 0:01:45]} 22. Rxc7 {[%clk 0:01:36]}  Qxc7 {[%clk 0:01:43]} 23. Rc1 {[%clk 0:01:36]}  Qd6 {[%clk 0:01:41]} 24. Nf4 {[%clk 0:01:33]}  Bxe5 {[%clk 0:01:38]} 25. dxe5 {[%clk 0:01:34]}  Qxe5 {[%clk 0:01:38]} 26. Bxe4 {[%clk 0:01:23]}  Qxe4 {[%clk 0:01:28]} 27. Qxb7 {[%clk 0:01:10]}  Qxa4 {[%clk 0:01:17]} 28. Nxe6 {[%clk 0:00:50]}  Rxe6 {[%clk 0:01:18]} 29. Qxd5 {[%clk 0:00:47]}  Kg7 {[%clk 0:01:02]} 30. g3 {[%clk 0:00:42]}  Qe4 {[%clk 0:01:00]} 31. Qd8 {[%clk 0:00:26]}  Re8 {[%clk 0:00:56]} 32. Qb6 {[%clk 0:00:25]}  Re6 {[%clk 0:00:51]} 33. Qd8 {[%clk 0:00:24]}  Rc6 {[%clk 0:00:50]} 34. Rd1 {[%clk 0:00:18]}  h5 {[%clk 0:00:45]} 35. h4 {[%clk 0:00:17]}  Qf3 {[%clk 0:00:37]} 36. Qd4+ {[%clk 0:00:15]}  Kh7 {[%clk 0:00:36]} 37. Rb1 {[%clk 0:00:10]}  Rc2 {[%clk 0:00:33]} 38. Rf1 {[%clk 0:00:11]}  a5 {[%clk 0:00:28]} 39. Qa4 {[%clk 0:00:11]}  Rc5 {[%clk 0:00:21]} 40. Qd4 {[%clk 0:00:11]}  Rd5 {[%clk 0:00:20]} 41. Qa4 {[%clk 0:00:09]}  Rf5 {[%clk 0:00:19]} 42. Qd4 {[%clk 0:00:09]}  g5 {[%clk 0:00:17]} 43. hxg5 {[%clk 0:00:08]}  Rxg5 {[%clk 0:00:18]} 44. Qd3+ {[%clk 0:00:08]}  Kg7 {[%clk 0:00:17]} 45. Qd4+ {[%clk 0:00:08]}  Kh7 {[%clk 0:00:17]} 46. Qd3+ {[%clk 0:00:09]}  Rg6 {[%clk 0:00:17]} 47. Qd4 {[%clk 0:00:08]}  Rg4 {[%clk 0:00:16]} 48. Qd3+ {[%clk 0:00:07]}  Kh6 {[%clk 0:00:16]} 49. Qd6+ {[%clk 0:00:07]}  Kg7 {[%clk 0:00:16]} 50. Qe5+ {[%clk 0:00:07]}  Kg6 {[%clk 0:00:15]} 51. Qd6+ {[%clk 0:00:07]}  Qf6 {[%clk 0:00:16]} 52. Qd3+ {[%clk 0:00:06]}  Qf5 {[%clk 0:00:15]} 53. Qd6+ {[%clk 0:00:06]}  Kh7 {[%clk 0:00:15]} 54. Qc7 {[%clk 0:00:05]}  h4 {[%clk 0:00:14]} 55. Kg2 {[%clk 0:00:05]}  h3+ {[%clk 0:00:12]} 56. Kh2 {[%clk 0:00:05]}  Rg7 {[%clk 0:00:11]} 57. Qf4 {[%clk 0:00:03]}  Qxf4 {[%clk 0:00:09]} 58. exf4 {[%clk 0:00:04]}  f5 {[%clk 0:00:10]} 59. Kxh3 {[%clk 0:00:05]}  Ra7 {[%clk 0:00:10]} 60. Ra1 {[%clk 0:00:05]}  a4 {[%clk 0:00:11]} 61. Ra3 {[%clk 0:00:06]}  Kg6 {[%clk 0:00:12]} 62. f3 {[%clk 0:00:07]}  Kf6 {[%clk 0:00:12]} 63. g4 {[%clk 0:00:07]}  Kg6 {[%clk 0:00:12]} 64. Kh4 {[%clk 0:00:08]}  Kf6 {[%clk 0:00:09]} 65. Kg3 {[%clk 0:00:08]}  Kg6 {[%clk 0:00:09]} 66. Kf2 {[%clk 0:00:09]}  Kf6 {[%clk 0:00:09]} 67. Ke3 {[%clk 0:00:10]}  Ke6 {[%clk 0:00:09]} 68. Kd4 {[%clk 0:00:10]}  Rf7 {[%clk 0:00:07]} 69. Ke3 {[%clk 0:00:07]}  Ra7 {[%clk 0:00:07]} 70. Kd4 {[%clk 0:00:08]}  Rf7 {[%clk 0:00:07]} 71. g5 {[%clk 0:00:06]}  Ra7 {[%clk 0:00:07]} 72. Kc5 {[%clk 0:00:07]}  Ra8 {[%clk 0:00:05]} 73. Kb5 {[%clk 0:00:07]}  Kd5 {[%clk 0:00:05]} 74. Rd3+ {[%clk 0:00:06]}  Ke6 {[%clk 0:00:05]} 75. Ra3 {[%clk 0:00:06]}  Kd5 {[%clk 0:00:05]} 76. Rxa4 {[%clk 0:00:06]}  Rb8+ {[%clk 0:00:06]} 77. Ka5 {[%clk 0:00:06]}  Kc5 {[%clk 0:00:06]} 78. Ka6 {[%clk 0:00:03]}  Ra8+ {[%clk 0:00:06]} 79. Kb7 {[%clk 0:00:04]}  Rxa4 {[%clk 0:00:07]} 80. Kc7 {[%clk 0:00:04]}  Rxf4 {[%clk 0:00:07]} 81. Kd7 {[%clk 0:00:05]}  Rxf3 {[%clk 0:00:08]} 82. Ke6 {[%clk 0:00:05]}  f4 {[%clk 0:00:08]} 83. g6 {[%clk 0:00:06]}  Rg3 {[%clk 0:00:08]} 84. Kf5 {[%clk 0:00:06]}  f3 {[%clk 0:00:08]} 0-1


[Site "https://www.chess.com"]

[Event "Titled Tuesday Blitz January 25 2022"]
[White "Gaehwiler, Gabriel"]
[Black "Jakubowski, Krzysztof"]
[WhiteFideId "1314530"]
[BlackFideId "1112848"]
[WhiteElo "2383"]
[BlackElo "2365"]
[Result "0-1"]
[Round "02"]
[TimeControl "180+1"]
[Date "2022.01.26"]
[WhiteClock "0:00:02"]
[BlackClock "0:00:05"]

1. d4 {[%clk 0:03:00]}  Nf6 {[%clk 0:02:58]} 2. c4 {[%clk 0:03:00]}  e6 {[%clk 0:02:57]} 3. g3 {[%clk 0:03:00]}  d5 {[%clk 0:02:55]} 4. Bg2 {[%clk 0:03:00]}  Bb4+ {[%clk 0:02:54]} 5. Bd2 {[%clk 0:03:00]}  Be7 {[%clk 0:02:53]} 6. Nf3 {[%clk 0:02:59]}  O-O {[%clk 0:02:52]} 7. Qc2 {[%clk 0:02:59]}  Nbd7 {[%clk 0:02:49]} 8. O-O {[%clk 0:02:59]}  c6 {[%clk 0:02:47]} 9. Bf4 {[%clk 0:02:50]}  Ne4 {[%clk 0:02:44]} 10. Nfd2 {[%clk 0:02:44]}  g5 {[%clk 0:02:29]} 11. Be3 {[%clk 0:02:39]}  Nd6 {[%clk 0:02:22]} 12. f3 {[%clk 0:02:26]}  f5 {[%clk 0:02:01]} 13. f4 {[%clk 0:02:21]}  g4 {[%clk 0:01:56]} 14. Nc3 {[%clk 0:02:18]}  h5 {[%clk 0:01:38]} 15. b4 {[%clk 0:02:03]}  Nf6 {[%clk 0:01:24]} 16. b5 {[%clk 0:02:01]}  Bd7 {[%clk 0:01:14]} 17. Qb3 {[%clk 0:01:56]}  h4 {[%clk 0:01:12]} 18. Rfc1 {[%clk 0:01:38]}  Kg7 {[%clk 0:01:06]} 19. Bf2 {[%clk 0:01:36]}  Rh8 {[%clk 0:00:58]} 20. a4 {[%clk 0:01:34]}  hxg3 {[%clk 0:00:54]} 21. Bxg3 {[%clk 0:01:24]}  Nh5 {[%clk 0:00:53]} 22. a5 {[%clk 0:01:14]}  a6 {[%clk 0:00:29]} 23. bxc6 {[%clk 0:01:06]}  bxc6 {[%clk 0:00:30]} 24. Na4 {[%clk 0:01:03]}  Rb8 {[%clk 0:00:28]} 25. Qc3 {[%clk 0:00:50]}  Nxg3 {[%clk 0:00:24]} 26. hxg3 {[%clk 0:00:50]}  Bf6 {[%clk 0:00:22]} 27. Nc5 {[%clk 0:00:46]}  dxc4 {[%clk 0:00:16]} 28. e3 {[%clk 0:00:46]}  Bc8 {[%clk 0:00:13]} 29. Nxc4 {[%clk 0:00:46]}  Nb5 {[%clk 0:00:13]} 30. Qd3 {[%clk 0:00:39]}  Nxd4 {[%clk 0:00:11]} 31. exd4 {[%clk 0:00:20]}  Qxd4+ {[%clk 0:00:10]} 32. Qxd4 {[%clk 0:00:19]}  Bxd4+ {[%clk 0:00:10]} 33. Kf1 {[%clk 0:00:20]}  Bxc5 {[%clk 0:00:09]} 34. Ne5 {[%clk 0:00:19]}  Bd4 {[%clk 0:00:09]} 35. Nxc6 {[%clk 0:00:20]}  Bxa1 {[%clk 0:00:09]} 36. Nxb8 {[%clk 0:00:19]}  Bd4 {[%clk 0:00:08]} 37. Rc7+ {[%clk 0:00:15]}  Kf6 {[%clk 0:00:08]} 38. Nc6 {[%clk 0:00:15]}  e5 {[%clk 0:00:06]} 39. Na7 {[%clk 0:00:12]}  Be6 {[%clk 0:00:05]} 40. fxe5+ {[%clk 0:00:08]}  Bxe5 {[%clk 0:00:04]} 41. Rc6 {[%clk 0:00:09]}  Ke7 {[%clk 0:00:03]} 42. Rb6 {[%clk 0:00:07]}  Bxg3 {[%clk 0:00:03]} 43. Nc6+ {[%clk 0:00:07]}  Kf7 {[%clk 0:00:03]} 44. Nd4 {[%clk 0:00:06]}  Bc4+ {[%clk 0:00:03]} 45. Kg1 {[%clk 0:00:06]}  Rd8 {[%clk 0:00:02]} 46. Rb7+ {[%clk 0:00:03]}  Kg6 {[%clk 0:00:02]} 47. Rb6+ {[%clk 0:00:03]}  Kh5 {[%clk 0:00:02]} 48. Nxf5 {[%clk 0:00:02]}  Bf4 {[%clk 0:00:01]} 49. Ng7+ {[%clk 0:00:02]}  Kh4 {[%clk 0:00:01]} 50. Kf2 {[%clk 0:00:01]}  Kg5 {[%clk 0:00:01]} 51. Kg1 {[%clk 0:00:01]}  Rd1+ {[%clk 0:00:01]} 52. Kf2 {[%clk 0:00:02]}  Rd2+ {[%clk 0:00:02]} 53. Kg1 {[%clk 0:00:02]}  Ra2 {[%clk 0:00:02]} 54. Ne6+ {[%clk 0:00:01]}  Bxe6 {[%clk 0:00:02]} 55. Rxe6 {[%clk 0:00:02]}  g3 {[%clk 0:00:02]} 56. Re1 {[%clk 0:00:02]}  Rxa5 {[%clk 0:00:02]} 57. Rd1 {[%clk 0:00:02]}  Ra2 {[%clk 0:00:03]} 58. Kf1 {[%clk 0:00:03]}  Kf6 {[%clk 0:00:03]} 59. Rd5 {[%clk 0:00:03]}  Rf2+ {[%clk 0:00:04]} 60. Kg1 {[%clk 0:00:04]}  Be5 {[%clk 0:00:04]} 61. Ra5 {[%clk 0:00:03]}  Rd2 {[%clk 0:00:04]} 62. Rxa6+ {[%clk 0:00:03]}  Kg5 {[%clk 0:00:05]} 63. Kf1 {[%clk 0:00:04]}  Bd4 {[%clk 0:00:04]} 64. Ra5+ {[%clk 0:00:01]}  Kf4 {[%clk 0:00:03]} 65. Bh3 {[%clk 0:00:01]}  Rf2+ {[%clk 0:00:03]} 66. Ke1 {[%clk 0:00:02]}  Bc3+ {[%clk 0:00:04]} 67. Kd1 {[%clk 0:00:02]}  Bxa5 {[%clk 0:00:05]} 0-1


[Site "https://www.chess.com"]

[Event "Titled Tuesday Blitz January 25 2022"]
[White "Galyas, Miklos"]
[Black "Vasquez Schroeder, Rodrigo"]
[WhiteFideId "707244"]
[BlackFideId "3400042"]
[WhiteElo "2409"]
[BlackElo "2568"]
[Result "0-1"]
[Round "02"]
[TimeControl "180+1"]
[Date "2022.01.26"]
[WhiteClock "0:00:08"]
[BlackClock "0:00:48"]

1. c4 {[%clk 0:03:00]}  e5 {[%clk 0:02:58]} 2. Nc3 {[%clk 0:02:59]}  Nf6 {[%clk 0:02:58]} 3. g3 {[%clk 0:02:58]}  Bb4 {[%clk 0:02:57]} 4. e4 {[%clk 0:02:57]}  Bxc3 {[%clk 0:02:55]} 5. dxc3 {[%clk 0:02:55]}  d6 {[%clk 0:02:53]} 6. f3 {[%clk 0:02:55]}  Be6 {[%clk 0:02:52]} 7. Nh3 {[%clk 0:02:53]}  O-O {[%clk 0:02:50]} 8. Nf2 {[%clk 0:02:52]}  a6 {[%clk 0:02:49]} 9. Bd3 {[%clk 0:02:52]}  Nbd7 {[%clk 0:02:47]} 10. Qe2 {[%clk 0:02:41]}  c6 {[%clk 0:02:42]} 11. O-O {[%clk 0:02:38]}  Nc5 {[%clk 0:02:41]} 12. b3 {[%clk 0:02:31]}  b5 {[%clk 0:02:40]} 13. cxb5 {[%clk 0:02:25]}  axb5 {[%clk 0:02:39]} 14. Be3 {[%clk 0:02:25]}  Nxd3 {[%clk 0:02:38]} 15. Nxd3 {[%clk 0:02:24]}  Qc7 {[%clk 0:02:34]} 16. Rad1 {[%clk 0:02:18]}  c5 {[%clk 0:02:33]} 17. Nf2 {[%clk 0:02:16]}  d5 {[%clk 0:02:31]} 18. Bg5 {[%clk 0:02:14]}  d4 {[%clk 0:02:24]} 19. Bxf6 {[%clk 0:02:13]}  gxf6 {[%clk 0:02:25]} 20. cxd4 {[%clk 0:01:57]}  cxd4 {[%clk 0:02:23]} 21. Nd3 {[%clk 0:01:57]}  Kh8 {[%clk 0:02:13]} 22. f4 {[%clk 0:01:57]}  Rg8 {[%clk 0:02:13]} 23. f5 {[%clk 0:01:52]}  Bd7 {[%clk 0:02:11]} 24. Rc1 {[%clk 0:01:52]}  Qd6 {[%clk 0:02:12]} 25. Rc2 {[%clk 0:01:42]}  b4 {[%clk 0:01:51]} 26. Rfc1 {[%clk 0:01:41]}  Bb5 {[%clk 0:01:50]} 27. Qd2 {[%clk 0:01:33]}  Bxd3 {[%clk 0:01:48]} 28. Qxd3 {[%clk 0:01:33]}  Ra7 {[%clk 0:01:45]} 29. Rc6 {[%clk 0:01:31]}  Qe7 {[%clk 0:01:45]} 30. R1c2 {[%clk 0:01:31]}  Rd7 {[%clk 0:01:33]} 31. R2c4 {[%clk 0:01:19]}  Rgd8 {[%clk 0:01:31]} 32. Rc2 {[%clk 0:01:16]}  Rd6 {[%clk 0:01:30]} 33. Rc7 {[%clk 0:01:15]}  R6d7 {[%clk 0:01:29]} 34. R7c6 {[%clk 0:01:15]}  Kg7 {[%clk 0:01:25]} 35. R2c4 {[%clk 0:01:10]}  h5 {[%clk 0:01:23]} 36. Kg2 {[%clk 0:01:08]}  Ra7 {[%clk 0:01:20]} 37. Rc2 {[%clk 0:01:07]}  Rda8 {[%clk 0:01:20]} 38. Qd2 {[%clk 0:01:04]}  Qb7 {[%clk 0:01:18]} 39. Kh3 {[%clk 0:00:46]}  Rxa2 {[%clk 0:01:14]} 40. Rxa2 {[%clk 0:00:23]}  Rxa2 {[%clk 0:01:13]} 41. Qxa2 {[%clk 0:00:21]}  Qxc6 {[%clk 0:01:13]} 42. Qe2 {[%clk 0:00:20]}  Kf8 {[%clk 0:01:05]} 43. Kh4 {[%clk 0:00:19]}  Qc3 {[%clk 0:01:04]} 44. Kxh5 {[%clk 0:00:19]}  d3 {[%clk 0:01:04]} 45. Qe3 {[%clk 0:00:17]}  Qd4 {[%clk 0:01:04]} 46. Qh6+ {[%clk 0:00:16]}  Ke7 {[%clk 0:01:04]} 47. Qh8 {[%clk 0:00:16]}  Qxe4 {[%clk 0:01:03]} 48. Qb8 {[%clk 0:00:14]}  Qxf5+ {[%clk 0:01:02]} 49. Kh4 {[%clk 0:00:14]}  Qe4+ {[%clk 0:01:02]} 50. Kh5 {[%clk 0:00:13]}  d2 {[%clk 0:00:59]} 51. Qc7+ {[%clk 0:00:12]}  Kf8 {[%clk 0:00:54]} 52. Qd8+ {[%clk 0:00:13]}  Kg7 {[%clk 0:00:54]} 53. Qxd2 {[%clk 0:00:12]}  Qf3+ {[%clk 0:00:52]} 54. Kh4 {[%clk 0:00:12]}  Qxb3 {[%clk 0:00:52]} 55. g4 {[%clk 0:00:09]}  Qc3 {[%clk 0:00:50]} 56. Qd8 {[%clk 0:00:08]}  Qd4 {[%clk 0:00:49]} 57. Kh5 {[%clk 0:00:08]}  Qxd8 {[%clk 0:00:48]} 0-1


[Site "https://www.chess.com"]

[Event "Titled Tuesday Blitz January 25 2022"]
[White "Golubev, Mikhail"]
[Black "Howell, David W L"]
[WhiteFideId "14100983"]
[BlackFideId "410608"]
[WhiteElo "2374"]
[BlackElo "2559"]
[Result "1/2-1/2"]
[Round "02"]
[TimeControl "180+1"]
[Date "2022.01.26"]
[WhiteClock "0:01:11"]
[BlackClock "0:00:38"]

1. e4 {[%clk 0:03:00]}  e6 {[%clk 0:02:54]} 2. d4 {[%clk 0:03:00]}  d5 {[%clk 0:02:55]} 3. Nc3 {[%clk 0:03:00]}  Nf6 {[%clk 0:02:47]} 4. Bg5 {[%clk 0:02:59]}  dxe4 {[%clk 0:02:42]} 5. Nxe4 {[%clk 0:02:59]}  Be7 {[%clk 0:02:43]} 6. Nxf6+ {[%clk 0:02:58]}  Bxf6 {[%clk 0:02:42]} 7. Bxf6 {[%clk 0:02:58]}  Qxf6 {[%clk 0:02:42]} 8. Qd2 {[%clk 0:02:59]}  c5 {[%clk 0:02:38]} 9. O-O-O {[%clk 0:02:52]}  cxd4 {[%clk 0:02:37]} 10. Qxd4 {[%clk 0:02:36]}  Qxd4 {[%clk 0:02:33]} 11. Rxd4 {[%clk 0:02:37]}  Ke7 {[%clk 0:02:27]} 12. g3 {[%clk 0:02:34]}  Bd7 {[%clk 0:02:20]} 13. Bg2 {[%clk 0:02:32]}  Bc6 {[%clk 0:02:21]} 14. Nf3 {[%clk 0:02:18]}  Nd7 {[%clk 0:02:05]} 15. Rhd1 {[%clk 0:02:14]}  Nf6 {[%clk 0:02:06]} 16. Ne1 {[%clk 0:02:11]}  Bxg2 {[%clk 0:01:58]} 17. Nxg2 {[%clk 0:02:12]}  Rhc8 {[%clk 0:01:56]} 18. Ne3 {[%clk 0:02:09]}  Rc7 {[%clk 0:01:54]} 19. a4 {[%clk 0:02:04]}  g5 {[%clk 0:01:51]} 20. h4 {[%clk 0:01:59]}  h6 {[%clk 0:01:50]} 21. c3 {[%clk 0:01:55]}  Rg8 {[%clk 0:01:45]} 22. hxg5 {[%clk 0:01:47]}  hxg5 {[%clk 0:01:45]} 23. Rh1 {[%clk 0:01:47]}  Rd7 {[%clk 0:01:38]} 24. Rxd7+ {[%clk 0:01:43]}  Kxd7 {[%clk 0:01:38]} 25. Kd2 {[%clk 0:01:41]}  Rd8 {[%clk 0:01:28]} 26. Ke2 {[%clk 0:01:40]}  Ke7 {[%clk 0:01:28]} 27. Rd1 {[%clk 0:01:32]}  Rh8 {[%clk 0:01:27]} 28. Rd4 {[%clk 0:01:31]}  Nd7 {[%clk 0:01:15]} 29. Rb4 {[%clk 0:01:30]}  b6 {[%clk 0:01:13]} 30. a5 {[%clk 0:01:26]}  Kd6 {[%clk 0:01:10]} 31. axb6 {[%clk 0:01:23]}  axb6 {[%clk 0:01:11]} 32. Rd4+ {[%clk 0:01:14]}  Kc7 {[%clk 0:01:05]} 33. Rc4+ {[%clk 0:01:11]}  Kb7 {[%clk 0:01:04]} 34. Rd4 {[%clk 0:01:10]}  Kc7 {[%clk 0:00:48]} 35. Rc4+ {[%clk 0:01:10]}  Kd6 {[%clk 0:00:46]} 36. Rd4+ {[%clk 0:01:11]}  Kc7 {[%clk 0:00:38]} 1/2-1/2


[Site "https://www.chess.com"]

[Event "Titled Tuesday Blitz January 25 2022"]
[White "Gunina, Valentina"]
[Black "Di Nicolantonio, Lucas"]
[WhiteFideId "4167570"]
[BlackFideId "680460"]
[WhiteElo "2465"]
[BlackElo "2381"]
[Result "0-1"]
[Round "02"]
[TimeControl "180+1"]
[Date "2022.01.26"]
[WhiteClock "0:00:04"]
[BlackClock "0:00:04"]

1. d4 {[%clk 0:03:00]}  d5 {[%clk 0:02:57]} 2. c4 {[%clk 0:03:00]}  e6 {[%clk 0:02:58]} 3. Nf3 {[%clk 0:03:00]}  Nf6 {[%clk 0:02:56]} 4. Nc3 {[%clk 0:03:00]}  dxc4 {[%clk 0:02:55]} 5. e4 {[%clk 0:03:00]}  b5 {[%clk 0:02:51]} 6. e5 {[%clk 0:02:58]}  Nd5 {[%clk 0:02:51]} 7. Nxb5 {[%clk 0:02:58]}  Nb6 {[%clk 0:02:51]} 8. Be2 {[%clk 0:02:57]}  Bb7 {[%clk 0:02:47]} 9. h4 {[%clk 0:02:57]}  Nc6 {[%clk 0:02:42]} 10. Rh3 {[%clk 0:02:56]}  Ne7 {[%clk 0:02:25]} 11. Nc3 {[%clk 0:02:51]}  Qd7 {[%clk 0:02:20]} 12. h5 {[%clk 0:02:34]}  h6 {[%clk 0:02:18]} 13. Rh4 {[%clk 0:02:24]}  Nf5 {[%clk 0:02:16]} 14. Rf4 {[%clk 0:02:22]}  Bb4 {[%clk 0:01:58]} 15. Kf1 {[%clk 0:02:21]}  Bxc3 {[%clk 0:01:54]} 16. bxc3 {[%clk 0:02:19]}  Nd5 {[%clk 0:01:55]} 17. Rxf5 {[%clk 0:02:03]}  Nxc3 {[%clk 0:01:35]} 18. Qc2 {[%clk 0:01:35]}  Nxe2 {[%clk 0:01:31]} 19. Qxe2 {[%clk 0:01:21]}  exf5 {[%clk 0:01:28]} 20. Ba3 {[%clk 0:01:19]}  Qa4 {[%clk 0:01:20]} 21. Bc5 {[%clk 0:01:14]}  c3 {[%clk 0:01:17]} 22. Kg1 {[%clk 0:01:12]}  Bd5 {[%clk 0:01:07]} 23. Rc1 {[%clk 0:01:03]}  Qxa2 {[%clk 0:00:57]} 24. Qb5+ {[%clk 0:01:01]}  Kd8 {[%clk 0:00:48]} 25. e6 {[%clk 0:01:01]}  Bxe6 {[%clk 0:00:20]} 26. Ne5 {[%clk 0:01:00]}  Qb2 {[%clk 0:00:18]} 27. Nc6+ {[%clk 0:00:38]}  Ke8 {[%clk 0:00:18]} 28. Nb4+ {[%clk 0:00:34]}  Kd8 {[%clk 0:00:15]} 29. Re1 {[%clk 0:00:23]}  Bd7 {[%clk 0:00:09]} 30. Qb7 {[%clk 0:00:15]}  Rc8 {[%clk 0:00:05]} 31. Be7+ {[%clk 0:00:14]}  Ke8 {[%clk 0:00:05]} 32. Bc5+ {[%clk 0:00:05]}  Kd8 {[%clk 0:00:05]} 33. Qd5 {[%clk 0:00:04]}  c6 {[%clk 0:00:04]} 0-1


[Site "https://www.chess.com"]

[Event "Titled Tuesday Blitz January 25 2022"]
[White "Guz, Ari"]
[Black "Hakobyan, Aram"]
[WhiteFideId "2825759"]
[BlackFideId "13306677"]
[WhiteElo "1913"]
[BlackElo "2557"]
[Result "0-1"]
[Round "02"]
[TimeControl "180+1"]
[Date "2022.01.26"]
[WhiteClock "0:00:40"]
[BlackClock "0:00:26"]

1. b3 {[%clk 0:03:00]}  Nf6 {[%clk 0:02:58]} 2. Bb2 {[%clk 0:03:01]}  g6 {[%clk 0:02:59]} 3. g3 {[%clk 0:03:02]}  Bg7 {[%clk 0:02:59]} 4. Bg2 {[%clk 0:03:02]}  c5 {[%clk 0:03:00]} 5. Nf3 {[%clk 0:03:03]}  d5 {[%clk 0:03:00]} 6. O-O {[%clk 0:03:03]}  O-O {[%clk 0:03:01]} 7. d3 {[%clk 0:03:03]}  d4 {[%clk 0:03:01]} 8. Nbd2 {[%clk 0:03:02]}  Nc6 {[%clk 0:03:01]} 9. Re1 {[%clk 0:03:02]}  Nd5 {[%clk 0:03:02]} 10. Nc4 {[%clk 0:02:53]}  e5 {[%clk 0:02:32]} 11. e3 {[%clk 0:02:48]}  b5 {[%clk 0:02:08]} 12. Ncd2 {[%clk 0:02:35]}  dxe3 {[%clk 0:02:08]} 13. fxe3 {[%clk 0:02:36]}  Re8 {[%clk 0:02:03]} 14. Qe2 {[%clk 0:02:30]}  Ndb4 {[%clk 0:01:47]} 15. Ne4 {[%clk 0:02:26]}  Qe7 {[%clk 0:01:44]} 16. a3 {[%clk 0:02:26]}  Na6 {[%clk 0:01:42]} 17. Nc3 {[%clk 0:02:24]}  Nc7 {[%clk 0:01:41]} 18. Nd2 {[%clk 0:02:15]}  Bb7 {[%clk 0:01:38]} 19. Nd5 {[%clk 0:02:14]}  Nxd5 {[%clk 0:01:38]} 20. Bxd5 {[%clk 0:02:15]}  Rad8 {[%clk 0:01:32]} 21. Bg2 {[%clk 0:02:12]}  e4 {[%clk 0:01:27]} 22. Bxg7 {[%clk 0:02:06]}  exd3 {[%clk 0:01:27]} 23. cxd3 {[%clk 0:02:06]}  Kxg7 {[%clk 0:01:28]} 24. Rac1 {[%clk 0:02:05]}  Ne5 {[%clk 0:01:27]} 25. d4 {[%clk 0:02:01]}  Bxg2 {[%clk 0:01:28]} 26. Kxg2 {[%clk 0:01:51]}  cxd4 {[%clk 0:01:19]} 27. exd4 {[%clk 0:01:49]}  Rxd4 {[%clk 0:01:20]} 28. Nf3 {[%clk 0:01:39]}  Nxf3 {[%clk 0:01:17]} 29. Qxe7 {[%clk 0:01:03]}  Nxe1+ {[%clk 0:01:17]} 30. Rxe1 {[%clk 0:01:04]}  Rxe7 {[%clk 0:01:17]} 31. Rxe7 {[%clk 0:01:05]}  a5 {[%clk 0:01:05]} 32. Rb7 {[%clk 0:01:02]}  b4 {[%clk 0:01:05]} 33. axb4 {[%clk 0:01:02]}  axb4 {[%clk 0:01:03]} 34. Kf2 {[%clk 0:00:59]}  Rd2+ {[%clk 0:01:02]} 35. Kg1 {[%clk 0:00:58]}  Rd4 {[%clk 0:00:56]} 36. Kf2 {[%clk 0:00:59]}  h5 {[%clk 0:00:45]} 37. Ke3 {[%clk 0:00:58]}  Rg4 {[%clk 0:00:45]} 38. Kf3 {[%clk 0:00:57]}  Kf6 {[%clk 0:00:40]} 39. h3 {[%clk 0:00:54]}  Rd4 {[%clk 0:00:41]} 40. Ke3 {[%clk 0:00:55]}  Rd1 {[%clk 0:00:37]} 41. Rxb4 {[%clk 0:00:54]}  Rg1 {[%clk 0:00:36]} 42. Kf2 {[%clk 0:00:54]}  Rh1 {[%clk 0:00:35]} 43. h4 {[%clk 0:00:54]}  Rb1 {[%clk 0:00:36]} 44. Rb6+ {[%clk 0:00:54]}  Kf5 {[%clk 0:00:36]} 45. Kf3 {[%clk 0:00:54]}  Rf1+ {[%clk 0:00:36]} 46. Kg2 {[%clk 0:00:54]}  Rc1 {[%clk 0:00:36]} 47. Rb5+ {[%clk 0:00:52]}  Ke4 {[%clk 0:00:34]} 48. Rb4+ {[%clk 0:00:52]}  Ke3 {[%clk 0:00:33]} 49. Rb7 {[%clk 0:00:52]}  Rc2+ {[%clk 0:00:33]} 50. Kh3 {[%clk 0:00:52]}  f5 {[%clk 0:00:29]} 51. Rb6 {[%clk 0:00:47]}  Kf2 {[%clk 0:00:29]} 52. Rb4 {[%clk 0:00:42]}  Kg1 {[%clk 0:00:27]} 53. g4 {[%clk 0:00:40]}  Rc3# {[%clk 0:00:26]} 0-1


[Site "https://www.chess.com"]

[Event "Titled Tuesday Blitz January 25 2022"]
[White "Hamitevici, Vladimir"]
[Black "Belenkaya, Dina"]
[WhiteFideId "13902393"]
[BlackFideId "24142654"]
[WhiteElo "2359"]
[BlackElo "2196"]
[Result "1-0"]
[Round "02"]
[TimeControl "180+1"]
[Date "2022.01.26"]
[WhiteClock "0:00:24"]
[BlackClock "0:00:51"]

1. a3 {[%clk 0:03:00]}  d5 {[%clk 0:02:57]} 2. Nf3 {[%clk 0:02:59]}  Nf6 {[%clk 0:02:57]} 3. b4 {[%clk 0:02:58]}  c6 {[%clk 0:02:58]} 4. Bb2 {[%clk 0:02:57]}  g6 {[%clk 0:02:58]} 5. e3 {[%clk 0:02:56]}  Bg7 {[%clk 0:02:57]} 6. c4 {[%clk 0:02:56]}  O-O {[%clk 0:02:58]} 7. d4 {[%clk 0:02:52]}  Bf5 {[%clk 0:02:54]} 8. Nc3 {[%clk 0:02:51]}  Nbd7 {[%clk 0:02:54]} 9. Qb3 {[%clk 0:02:42]}  a5 {[%clk 0:02:54]} 10. b5 {[%clk 0:02:12]}  dxc4 {[%clk 0:02:50]} 11. Bxc4 {[%clk 0:02:13]}  Nb6 {[%clk 0:02:51]} 12. Be2 {[%clk 0:02:00]}  Be6 {[%clk 0:02:38]} 13. Qc2 {[%clk 0:01:52]}  Nc4 {[%clk 0:02:38]} 14. Ng5 {[%clk 0:01:41]}  Nxb2 {[%clk 0:02:13]} 15. Nxe6 {[%clk 0:01:40]}  fxe6 {[%clk 0:02:14]} 16. Qxb2 {[%clk 0:01:23]}  Nd5 {[%clk 0:02:14]} 17. Ne4 {[%clk 0:01:17]}  Qc7 {[%clk 0:01:59]} 18. Nc5 {[%clk 0:01:07]}  Rf6 {[%clk 0:01:44]} 19. Bg4 {[%clk 0:01:07]}  Qc8 {[%clk 0:01:40]} 20. O-O {[%clk 0:01:01]}  b6 {[%clk 0:01:40]} 21. Ne4 {[%clk 0:01:01]}  c5 {[%clk 0:01:35]} 22. Nxf6+ {[%clk 0:00:56]}  Bxf6 {[%clk 0:01:36]} 23. Rac1 {[%clk 0:00:55]}  h5 {[%clk 0:01:32]} 24. Bh3 {[%clk 0:00:53]}  g5 {[%clk 0:01:33]} 25. g3 {[%clk 0:00:47]}  g4 {[%clk 0:01:24]} 26. Bg2 {[%clk 0:00:47]}  Qd7 {[%clk 0:01:25]} 27. Qc2 {[%clk 0:00:44]}  cxd4 {[%clk 0:01:15]} 28. Qg6+ {[%clk 0:00:40]}  Bg7 {[%clk 0:01:14]} 29. exd4 {[%clk 0:00:36]}  Rd8 {[%clk 0:01:10]} 30. Qxh5 {[%clk 0:00:30]}  Nf6 {[%clk 0:01:11]} 31. Qe5 {[%clk 0:00:26]}  Qxd4 {[%clk 0:01:08]} 32. Qxe6+ {[%clk 0:00:25]}  Kh8 {[%clk 0:01:06]} 33. Rcd1 {[%clk 0:00:22]}  Qxd1 {[%clk 0:01:05]} 34. Rxd1 {[%clk 0:00:23]}  Rxd1+ {[%clk 0:01:05]} 35. Bf1 {[%clk 0:00:24]}  Nd5 {[%clk 0:00:53]} 36. Qc8+ {[%clk 0:00:24]}  Kh7 {[%clk 0:00:51]} 37. Qc2+ {[%clk 0:00:24]} 1-0


[Site "https://www.chess.com"]